{"text_format":"1","workbook":"xlsx","n_sheets":10,"sheets":["Титульный","Инструкция","Прил. № 1","Прил. № 2.1 (год-3)","Прил. № 2.2 (год-2)","Прил. № 2.3 (год-1)","Прил. № 3.1 ('а' п.16)","Прил. № 3.2 ('в' п.16)","Проверка","Справочник"],"not_rendered":{"charts":0,"images":0,"macros":1,"external_links":0,"defined_names":41,"comments":0,"pivot_tables":0},"unopened":[],"bounds":{"document_bytes":16777216,"sheet_cells":100000,"rows_first":2000,"rows_last":500,"rows_between":2000,"halvings":0,"cell_chars":16384,"cell_head_chars":4096},"cells_cut":0,"cells_raw":0,"read":"whole","date_system":"1900"}

{"sheet":"Титульный","index":0,"n_rows":23,"n_cols":3,"rows_kept":23,"cut":false,"hidden":false,"merged":[[3,1,3,2]]}
["SHABLON.TSO.2023"]
["Версия 1.0.6"]
[]
[null,"Информация о плате за техприсоединение к электросетям"]
[]
[null,"Наименование организации","Акционерное общество \"Верхнесалдинские электрические сети\""]
[null,"ИНН",6623130658]
[null,"КПП",662301001]
[null,"Наименование (описание) обособленного подразделения","нет"]
[null,"Организационно-правовая форма","Акционерное общество"]
[null,"Вид деятельности","Передача электрической энергии, технологическое присоединение к электрическим сетям"]
[null,"Период",2022]
[null,null,"Адрес регулируемой организации"]
[null,"Юридический адрес","624761, Свердловская область, г. Верхняя Салда, ул Молодежный поселок,  д. 102А, офис 1"]
[null,"Почтовый адрес","624761, Свердловская область, г. Верхняя Салда, ул Молодежный поселок,  д. 102А, офис 1"]
[null,null,"Руководитель"]
[null,"Фамилия, имя, отчество","Арсеньев Владимир Валерьевич"]
[null,"Телефон","7 (34345) 5-66-63"]
[null,null,"Ответственный за предоставление информации (от регулируемой организации)"]
[null,"Фамилия, имя, отчество","Михайлова Ольга Анатольевна"]
[null,"Должность","Начальник отдела ценообразования услуг в электроэнергетике"]
[null,"Контактный телефон","8(343)286-05-81 доб.1390"]
[null,"e-mail","OBateneva@okenergo.com"]

{"sheet":"Инструкция","index":1,"n_rows":34,"n_cols":2,"rows_kept":34,"cut":false,"hidden":false,"merged":[[1,1,1,14],[2,1,2,14],[3,1,3,14],[4,1,4,14],[5,1,5,14],[6,1,6,14],[7,1,7,14],[8,1,8,14],[9,1,9,14],[10,1,10,14],[11,1,11,14],[12,1,12,14],[13,1,13,14],[14,1,14,14],[16,1,16,14],[18,1,18,14],[15,1,15,14],[19,1,19,14],[20,1,20,14],[21,1,21,14],[22,1,22,14],[23,1,23,14],[24,1,24,14],[31,1,31,14],[32,1,32,14],[33,1,33,14],[25,1,25,14],[26,1,26,14],[28,1,28,14],[29,1,29,14],[30,1,30,14]]}
[]
[null,"Инструкция\nпо заполнению приложений, направленных письмом Региональной энергетической комиссии Свердловской области (далее  –  РЭК Свердловской области), разработанных в соответствии с методическими указаниями  по определению размера платы за технологическое присоединение к электрическим сетям, утвержденными  приказом ФАС России от 30.06.2022 № 490/22"]
[null,"1.  Ячейки голубого цвета подлежат обязательному заполнению территориальной сетевой организацией (далее – ТСО), ячейки желтого цвета предназначены для заполнения ТСО, ячейки зеленого цвета не подлежат заполнению."]
[null,{"$f":"\"2. Показатели в приложении 1 заполняются в отношении построенных и введенных в эксплуатацию объектов электросетевого хозяйства \"&\"ТСО за периоды \"&IF(Титульный!C12=\"\",\"--- выберите период на листе Титульный.\",(Титульный!C12-3)&\", \"&(Титульный!C12-2)&\", \"&(Титульный!C12-1)&\" годы.\")","v":"2. Показатели в приложении 1 заполняются в отношении построенных и введенных в эксплуатацию объектов электросетевого хозяйства ТСО за периоды 2019, 2020, 2021 годы."}]
[null,{"$f":"\"3. Показатели в приложении 1 заполняются для территорий городских населенных пунктов и для территорий, \" & \"не относящихся к городским населенным пунктам без разделения по типу.\"","v":"3. Показатели в приложении 1 заполняются для территорий городских населенных пунктов и для территорий, не относящихся к городским населенным пунктам без разделения по типу."}]
[null,"4. Показатели в приложениях 2.1, 2.2, 2.3, 3.1, 3.2 заполняются за 2019, 2020, 2021 годы."]
[]
[null,"I. Заполнение приложения 1."]
[null,"1) Приложение 1 заполняется для территорий городских населенных пунктов и для территорий, не относящихся к городским населенным пунктам без разделения по типу."]
[null,"2) В графе 2 указываются характеристики объекта электросетевого хозяйства/средства коммерческого учета электрической энергии (мощности), введенного в эксплуатацию (наименование мероприятия, выполненного ТСО в соответствии с выданными техническими условиями)."]
[]
[null,"3) В графах 3, 6, 9 указывается протяженность воздушной или кабельной линий электропередачи (далее – ЛЭП) в километрах по трассе (без учета количества кабелей (проводов) в линии), а также количество пунктов секционирования и точек учета электрической энергии (мощности) в штуках."]
[null,"4) В графах 4, 7, 10 указывается размер максимальной мощности энергопринимающего устройства заявителя с учетом третьей категории надежности."]
[null,"5) В графах 5, 8, 11 указываются расходы на строительство введенных в эксплуатацию объектов электросетевого хозяйства ТСО, а также на обеспечение средствами коммерческого учета электрической энергии (мощности), в соответствии с учетной политикой ТСО (например: стоимость принимаемых основных фондов согласно формам КС-14, КС-11)."]
[null,"6) В графах 5, 8, 11, 14 указывается размерность показателей с учётом обязательного заполнения трех знаков после запятой."]
[null,"7) Графы 12-14 заполняются ТСО только в случае, если за 3 предыдущих года ТСО не осуществлялось строительство  объектов электросетевого хозяйства, а также обеспечение средствами коммерческого учета электрической энергии (мощности), в отношении которых устанавливаются стандартизированные тарифные ставки, по планируемым расходам, определенным по сметам, выполненным с применением сметных нормативов."]
[null,{"$f":"\"8) За периоды \" &IF(Титульный!C12=\"\",\"--- выберите период на листе Титульный --- \",(Титульный!C12-3)&\", \"&(Титульный!C12-2)&\", \"&(Титульный!C12-1)&\" годы \") & \"всем ТСО необходимо представить в РЭК Свердловской области документы, подтверждающие расходы на выполнение мероприятий по строительству объектов электросетевого хозяйства ТСО, а также на обеспечение средствами  коммерческого учета электрической энергии.\"","v":"8) За периоды 2019, 2020, 2021 годы всем ТСО необходимо представить в РЭК Свердловской области документы, подтверждающие расходы на выполнение мероприятий по строительству объектов электросетевого хозяйства ТСО, а также на обеспечение средствами  коммерческого учета электрической энергии."}]
[]
[null,"II.     Заполнение приложений 2.1, 2.2, 2.3."]
[null,{"$f":"\"1)           Приложение 2.1 заполняется за \" &IF(Титульный!C12=\"\",\"--- выберите период на листе Титульный.\",(Титульный!C12-3)&\" год.\")","v":"1)           Приложение 2.1 заполняется за 2019 год."}]
[null,{"$f":"\"2)           Приложение 2.2 заполняется за \" &IF(Титульный!C12=\"\",\"--- выберите период на листе Титульный.\",(Титульный!C12-2)&\" год.\")","v":"2)           Приложение 2.2 заполняется за 2020 год."}]
[null,{"$f":"\"3)           Приложение 2.3 заполняется за \" &IF(Титульный!C12=\"\",\"--- выберите период на листе Титульный.\",(Титульный!C12-1)&\" год.\")","v":"3)           Приложение 2.3 заполняется за 2021 год."}]
[null,"4)                     В графе 3 пункта 1 указываются расходы ТСО на выполнение мероприятий по подготовке и выдаче технических условий заявителю в тыс. рублей."]
[null,"5)           В графе 3 пунктов 2.1, 2.2 указываются расходы ТСО на выполнение мероприятий по проверке сетевой организацией выполнения заявителем технических условий в тыс. рублей."]
[null,"6)                     В графе 4 указывается количество технологических присоединений, в штуках."]
[null,"7)                     В графе 5 указывается объем максимальной мощности, в кВт."]
[null,{"$f":"\"8)           За периоды \" &IF(Титульный!C12=\"\",\"--- выберите период на листе Титульный --- \",(Титульный!C12-3)&\", \"&(Титульный!C12-2)&\", \"&(Титульный!C12-1)&\" годы \") & \"всем ТСО необходимо представить в РЭК Свердловской области документы, подтверждающие расходы, количество техприсоединений, объем максимальной мощности.\"","v":"8)           За периоды 2019, 2020, 2021 годы всем ТСО необходимо представить в РЭК Свердловской области документы, подтверждающие расходы, количество техприсоединений, объем максимальной мощности."}]
[]
[null,"III.     Заполнение приложений 3.1, 3.2."]
[null,"1)                     Приложение 3.1 заполняется ТСО по мероприятию: подготовка и выдача сетевой организацией технических условий заявителю."]
[null,"2)                     Приложение 3.2 заполняется ТСО по мероприятию: проверка сетевой организацией выполнения заявителем технических условий."]
[null,"3)                     В графах 3-5 указываются расходы на выполнение мероприятий по технологическому присоединению с разбивкой по каждому показателю в тыс. рублей в соответствии с учетной политикой ТСО и бухгалтерской отчетностью."]
[null,"4)                     В графах 3-5 указывается размерность показателей с учётом обязательного заполнения трех знаков после запятой."]
[null,{"$f":"\"5)          За периоды \" &IF(Титульный!C12=\"\",\"--- выберите период на листе Титульный --- \",(Титульный!C12-3)&\", \"&(Титульный!C12-2)&\", \"&(Титульный!C12-1)&\" годы \") & \"всем ТСО необходимо представить в РЭК Свердловской области документы, подтверждающие расходы по технологическому присоединению.\"","v":"5)          За периоды 2019, 2020, 2021 годы всем ТСО необходимо представить в РЭК Свердловской области документы, подтверждающие расходы по технологическому присоединению."}]

{"sheet":"Прил. № 1","index":2,"n_rows":86,"n_cols":29,"rows_kept":86,"cut":false,"hidden":false,"merged":[[14,7,14,12],[28,7,28,12],[38,7,38,12],[79,6,79,28],[45,7,45,12],[55,7,55,12],[62,7,62,12],[69,7,69,12],[15,7,15,12],[10,6,10,28],[11,6,11,28],[12,6,13,6],[12,13,12,16],[12,17,12,20],[12,21,12,24],[12,25,12,28],[12,7,13,12]]}
[]
[]
[]
[]
[]
[]
[]
[]
[]
[null,null,null,null,null,null,null," "]
[null,null,null,null,null,null,"Приложение № 1"]
["dd_hide/show","hide","range_name","address_title","address_svod",null,"\nРасходы на строительство введенных в эксплуатацию объектов электросетевого хозяйства для целей технологического присоединения и для целей реализации иных мероприятий инвестиционной программы территориальной сетевой организации, а также на обеспечение средствами\nкоммерческого учета электрической энергии (мощности)"]
[null,null,null,null,null,null,"№ п/п","Объект электросетевого хозяйства/Средство коммерческого учета электрической энергии (мощности)",null,null,null,null,null,"Год ввода объекта 2019",null,null,null,"Год ввода объекта 2020",null,null,null,"Год ввода объекта 2021",null,null,null,"План*"]
[null,null,null,null,null,null,null,null,null,null,null,null,null,"уровень напряжения, кВ","протяженность\n(для линий электропередачи), км. / количество\n(для пунктов секционирования, точек учета ээ), шт.","максимальная мощность, кВт","расходы на строительство объекта/на обеспечение средствами коммерческого учета электрической энергии (мощности), тыс. руб.","уровень напряжения, кВ","протяженность\n(для линий электропередачи), км. / количество\n(для пунктов секционирования, точек учета ээ), шт.","максимальная мощность, кВт","расходы на строительство объекта/на обеспечение средствами коммерческого учета электрической энергии (мощности), тыс. руб.","уровень напряжения, кВ","протяженность\n(для линий электропередачи), км. / количество\n(для пунктов секционирования, точек учета ээ), шт.","максимальная мощность, кВт","расходы на строительство объекта/на обеспечение средствами коммерческого учета электрической энергии (мощности), тыс. руб.","уровень напряжения, кВ","протяженность\n(для линий электропередачи), км. / количество\n(для пунктов секционирования, точек учета ээ), шт.","максимальная мощность, кВт","расходы на строительство объекта/на обеспечение средствами коммерческого учета электрической энергии (мощности), тыс. руб."]
["ddShPr11City_rstart",null,null,null,null,null,1,2,null,null,null,null,null,3,3,4,5,7,6,7,8,11,9,10,11,15,12,13,14]
[null,null,null,null,null,null,"1.","СТРОИТЕЛЬСТВО ВОЗДУШНЫХ ЛИНИЙ ЭЛЕКТРОПЕРЕДАЧИ",null,null,null,null,null,null,{"$f":"SUM(O18:O26)","v":1.0549999999999999},{"$f":"SUM(P18:P26)","v":76},{"$f":"SUM(Q18:Q26)","v":322.52175999999997},null,{"$f":"SUM(S18:S26)","v":1.2089999999999999},{"$f":"SUM(T18:T26)","v":301},{"$f":"SUM(U18:U26)","v":863.91738999999995},null,{"$f":"SUM(W18:W26)","v":4.5810000000000004},{"$f":"SUM(X18:X26)","v":340},{"$f":"SUM(Y18:Y26)","v":3574.73902},null,{"$f":"SUM(AA18:AA26)","v":0},{"$f":"SUM(AB18:AB26)","v":0},{"$f":"SUM(AC18:AC26)","v":0}]
[null,null,null,null,null,null,null,"тип опор: ","тип провода:","материал провода:","сечение провода:","количество цепей:","уровень напряжения:"]
[null,1]
[null,null,"VL",{"$f":"ROW($D$17)","v":17},"VL:1.1.4.1.1.1.","Удалить",{"$f":"$G$16 & (ROWS($G$18:G19)-2)+1&\".\"","v":"1.1."},"деревянные","изолированный","алюминиевый","до 50 мм2 включительно","одноцепная","0,4 кВ и ниже",null,0.21199999999999999,30,40.385350000000003,40.385350000000003,null,null,null,null,0.75700000000000001,116,330.28300000000002]
[null,null,"VL",{"$f":"ROW($D$17)","v":17},"VL:1.1.4.2.1.1.","Удалить",{"$f":"$G$16 & (ROWS($G$18:G20)-2)+1&\".\"","v":"1.2."},"деревянные","изолированный","алюминиевый","от 50 до 100 мм2 включительно","одноцепная","0,4 кВ и ниже",null,null,null,null,null,null,null,null,null,{"$f":"0.641+0.521","v":1.1619999999999999},{"$f":"10+50","v":60},{"$f":"405.70137+188.93696","v":594.63833}]
[null,null,"VL",{"$f":"ROW($D$17)","v":17},"VL:2.1.4.1.1.1.","Удалить",{"$f":"$G$16 & (ROWS($G$18:G21)-2)+1&\".\"","v":"1.3."},"железобетонные опоры","изолированный","алюминиевый","до 50 мм2 включительно","одноцепная","0,4 кВ и ниже",null,0.129,31,74.216409999999996,null,0.97299999999999998,271,656.68673999999999,null,{"$f":"0.775+1.145","v":1.92},{"$f":"115+24","v":139},{"$f":"469.473+565.786","v":1035.259}]
[null,null,"VL",{"$f":"ROW($D$17)","v":17},"VL:2.1.4.1.1.2.","Удалить",{"$f":"$G$16 & (ROWS($G$18:G22)-2)+1&\".\"","v":"1.4."},"железобетонные опоры","изолированный","алюминиевый","до 50 мм2 включительно","одноцепная","1-20 кВ",null,0.71399999999999997,15,207.92,null,3.5999999999999997E-2,15,63.657829999999997,null,1.4999999999999999E-2,15,135.38404]
[null,null,"VL",{"$f":"ROW($D$17)","v":17},"VL:2.1.4.2.1.1.","Удалить",{"$f":"$G$16 & (ROWS($G$18:G23)-2)+1&\".\"","v":"1.5."},"железобетонные опоры","изолированный","алюминиевый","от 50 до 100 мм2 включительно","одноцепная","0,4 кВ и ниже",null,null,null,null,null,0.2,15,143.57282000000001]
[null,null,"VL",{"$f":"ROW($D$17)","v":17},"VL:2.1.4.2.1.2.","Удалить",{"$f":"$G$16 & (ROWS($G$18:G24)-2)+1&\".\"","v":"1.6."},"железобетонные опоры","изолированный","алюминиевый","от 50 до 100 мм2 включительно","одноцепная","1-20 кВ",null,null,null,null,null,null,null,null,null,0.72699999999999998,10,1479.1746499999999]
[null,1,"VL",{"$f":"ROW($D$17)","v":17},null,"Удалить",{"$f":"$G$16 & (ROWS($G$18:G25)-2)+1&\".\"","v":"1.7."}]
[null,1,null,null,null,null,null,null,null,null,null,null,null," "]
[null,null,null,null,null,null,null,"Добавить"]
[null,1]
[null,null,null,null,null,null,"2.","СТРОИТЕЛЬСТВО КАБЕЛЬНЫХ ЛИНИЙ ЭЛЕКТРОПЕРЕДАЧИ",null,null,null,null,null,null,{"$f":"SUM(O31:O36)","v":0},{"$f":"SUM(P31:P36)","v":0},{"$f":"SUM(Q31:Q36)","v":0},null,{"$f":"SUM(S31:S36)","v":0.38},{"$f":"SUM(T31:T36)","v":132},{"$f":"SUM(U31:U36)","v":338.17923000000002},null,{"$f":"SUM(W31:W36)","v":9.1999999999999998E-2},{"$f":"SUM(X31:X36)","v":280},{"$f":"SUM(Y31:Y36)","v":114.04149000000001},null,{"$f":"SUM(AA31:AA36)","v":0},{"$f":"SUM(AB31:AB36)","v":0},{"$f":"SUM(AC31:AC36)","v":0}]
[null,null,null,null,null,null,null,"способ прокладки: ","количество жил:","тип изоляции:","сечение провода:","количество кабелей в траншее, канале, туннеле или\n коллекторе, на галерее или эстакаде, труб в скважине:","уровень напряжения:"]
[null,1]
[null,null,"KL",{"$f":"ROW($D$30)","v":30},"KL:1.2.1.2.1.1.","Удалить",{"$f":"$G$29 & (ROWS($G$31:G32)-2)+1&\".\"","v":"2.1."},"в траншеях","многожильные","резиновая и пластмассовая ","от 50 до 100 мм2 включительно","один","0,4 кВ и ниже",null,null,null,null,null,null,null,null,null,6.2E-2,140,60.839260000000003]
[null,null,"KL",{"$f":"ROW($D$30)","v":30},"KL:1.2.1.2.1.2.","Удалить",{"$f":"$G$29 & (ROWS($G$31:G33)-2)+1&\".\"","v":"2.2."},"в траншеях","многожильные","резиновая и пластмассовая ","от 50 до 100 мм2 включительно","один","1-10 кВ",null,null,null,null,null,null,null,null,null,0.03,140,53.20223]
[null,null,"KL",{"$f":"ROW($D$30)","v":30},"KL:1.2.1.3.1.1.","Удалить",{"$f":"$G$29 & (ROWS($G$31:G34)-2)+1&\".\"","v":"2.3."},"в траншеях","многожильные","резиновая и пластмассовая ","от 100 до 200 мм2 включительно","один","0,4 кВ и ниже",null,null,null,null,null,0.38,132,338.17923000000002]
[null,1,"KL",{"$f":"ROW($D$30)","v":30},null,"Удалить",{"$f":"$G$29 & (ROWS($G$31:G35)-2)+1&\".\"","v":"2.4."}]
[null,1]
[null,null,null,null,null,null,null,"Добавить"]
[null,1]
[null,null,null,null,null,null,"3.","СТРОИТЕЛЬСТВО ПУНКТОВ СЕКЦИОНИРОВАНИЯ",null,null,null,null,null,null,{"$f":"SUM(O41:O43)","v":0},{"$f":"SUM(P41:P43)","v":0},{"$f":"SUM(Q41:Q43)","v":0},null,{"$f":"SUM(S41:S43)","v":0},{"$f":"SUM(T41:T43)","v":0},{"$f":"SUM(U41:U43)","v":0},null,{"$f":"SUM(W41:W43)","v":0},{"$f":"SUM(X41:X43)","v":0},{"$f":"SUM(Y41:Y43)","v":0},null,{"$f":"SUM(AA41:AA43)","v":0},{"$f":"SUM(AB41:AB43)","v":0},{"$f":"SUM(AC41:AC43)","v":0}]
[null,null,null,null,null,null,null,"пункт секционирования: ","номинальный ток:","количество ячеек в распределительном или переключательном пункте:","уровень напряжения:"]
[null,1]
[null,1,"PS",{"$f":"ROW($D$40)","v":40},null,"Удалить",{"$f":"$G$39 & (ROWS($G$41:G42)-2)+1&\".\"","v":"3.1."}]
[null,1]
[null,null,null,null,null,null,null,"Добавить"]
[null,1]
[null,null,null,null,null,null,"4.","СТРОИТЕЛЬСТВО КОМПЛЕКТНЫХ ТРАНСФОРМАТОРНЫХ ПОДСТАНЦИЙ (КТП) С УРОВНЕМ НАПРЯЖЕНИЯ ДО 35 КВ",null,null,null,null,null,null,{"$f":"SUM(O48:O53)","v":1},{"$f":"SUM(P48:P53)","v":15},{"$f":"SUM(Q48:Q53)","v":282.27999999999997},null,{"$f":"SUM(S48:S53)","v":1},{"$f":"SUM(T48:T53)","v":15},{"$f":"SUM(U48:U53)","v":316.23271},null,{"$f":"SUM(W48:W53)","v":3},{"$f":"SUM(X48:X53)","v":165},{"$f":"SUM(Y48:Y53)","v":1741.0136499999999},null,{"$f":"SUM(AA48:AA53)","v":0},{"$f":"SUM(AB48:AB53)","v":0},{"$f":"SUM(AC48:AC53)","v":0}]
[null,null,null,null,null,null,null,"уровень напряжения: ","количество трансформаторов:","трансформаторная мощность:","тип трансформаторной подстанции:"]
[null,1]
[null,null,"TS",{"$f":"ROW($D$47)","v":47},"TS:1.1.1.1.","Удалить",{"$f":"$G$46 & (ROWS($G$48:G49)-2)+1&\".\"","v":"4.1."},"6/0,4 кВ","однотрансформаторные","до 25 кВА включительно","столбовой/мачтовый ",null,null,null,1,15,282.27999999999997,null,1,15,316.23271]
[null,null,"TS",{"$f":"ROW($D$47)","v":47},"TS:1.1.3.2.","Удалить",{"$f":"$G$46 & (ROWS($G$48:G50)-2)+1&\".\"","v":"4.2."},"6/0,4 кВ","однотрансформаторные","от 100 до 250 кВА включительно","шкафной или киосковый",null,null,null,null,null,null,null,null,null,null,null,2,{"$f":"10+140","v":150},{"$f":"539.13268+503.27845","v":1042.41113}]
[null,null,"TS",{"$f":"ROW($D$47)","v":47},"TS:1.1.4.2.","Удалить",{"$f":"$G$46 & (ROWS($G$48:G51)-2)+1&\".\"","v":"4.3."},"6/0,4 кВ","однотрансформаторные","от 250 до 400 кВА включительно","шкафной или киосковый",null,null,null,null,null,null,null,null,null,null,null,1,15,698.60252000000003]
[null,1,"TS",{"$f":"ROW($D$47)","v":47},null,"Удалить",{"$f":"$G$46 & (ROWS($G$48:G52)-2)+1&\".\"","v":"4.4."}]
[null,1]
[null,null,null,null,null,null,null,"Добавить"]
[null,1]
[null,null,null,null,null,null,"5.","СТРОИТЕЛЬСТВО РАСПРЕДЕЛИТЕЛЬНЫХ ТРАНСФОРМАТОРНЫХ ПОДСТАНЦИЙ (РТП) С УРОВНЕМ НАПРЯЖЕНИЯ ДО 35 КВ",null,null,null,null,null,null,{"$f":"SUM(O58:O60)","v":0},{"$f":"SUM(P58:P60)","v":0},{"$f":"SUM(Q58:Q60)","v":0},null,{"$f":"SUM(S58:S60)","v":0},{"$f":"SUM(T58:T60)","v":0},{"$f":"SUM(U58:U60)","v":0},null,{"$f":"SUM(W58:W60)","v":0},{"$f":"SUM(X58:X60)","v":0},{"$f":"SUM(Y58:Y60)","v":0},null,{"$f":"SUM(AA58:AA60)","v":0},{"$f":"SUM(AB58:AB60)","v":0},{"$f":"SUM(AC58:AC60)","v":0}]
[null,null,null,null,null,null,null,"количество трансформаторов:","трансформаторная мощность:","уровень напряжения: ","тип распределительной трансформаторной подстанции:"]
[null,1]
[null,1,"RTP",{"$f":"ROW($D$57)","v":57},null,"Удалить",{"$f":"$G$56 & (ROWS($G$58:G59)-2)+1&\".\"","v":"5.1."}]
[null,1]
[null,null,null,null,null,null,null,"Добавить"]
[null,1]
[null,null,null,null,null,null,"6.","СТРОИТЕЛЬСТВО ЦЕНТРОВ ПИТАНИЯ, ПОДСТАНЦИЙ УРОВНЕМ НАПРЯЖЕНИЯ 35 КВ И ВЫШЕ (ПС)",null,null,null,null,null,null,{"$f":"SUM(O65:O67)","v":0},{"$f":"SUM(P65:P67)","v":0},{"$f":"SUM(Q65:Q67)","v":0},null,{"$f":"SUM(S65:S67)","v":0},{"$f":"SUM(T65:T67)","v":0},{"$f":"SUM(U65:U67)","v":0},null,{"$f":"SUM(W65:W67)","v":0},{"$f":"SUM(X65:X67)","v":0},{"$f":"SUM(Y65:Y67)","v":0},null,{"$f":"SUM(AA65:AA67)","v":0},{"$f":"SUM(AB65:AB67)","v":0},{"$f":"SUM(AC65:AC67)","v":0}]
[null,null,null,null,null,null,null,"количество трансформаторов:","трансформаторная мощность:","уровень напряжения: ","тип центра питания, подстанции:"]
[null,1]
[null,1,"SP",{"$f":"ROW($D$64)","v":64},null,"Удалить",{"$f":"$G$63 & (ROWS($G$65:G66)-2)+1&\".\"","v":"6.1."}]
[null,1]
[null,null,null,null,null,null,null,"Добавить"]
[null,1,null,null,null,null,null,null,null," "]
[null,null,null,null,null,null,"7.","ОБЕСПЕЧЕНИЕ СРЕДСТВАМИ КОММЕРЧЕСКОГО УЧЕТА ЭЛЕКТРИЧЕСКОЙ ЭНЕРГИИ (МОЩНОСТИ)",null,null,null,null,null,null,{"$f":"SUM(O72:O77)","v":0},{"$f":"SUM(P72:P77)","v":0},{"$f":"SUM(Q72:Q77)","v":0},null,{"$f":"SUM(S72:S77)","v":0},{"$f":"SUM(T72:T77)","v":0},{"$f":"SUM(U72:U77)","v":0},null,{"$f":"SUM(W72:W77)","v":71},{"$f":"SUM(X72:X77)","v":1066},{"$f":"SUM(Y72:Y77)","v":1357.9403600000001},null,{"$f":"SUM(AA72:AA77)","v":0},{"$f":"SUM(AB72:AB77)","v":0},{"$f":"SUM(AC72:AC77)","v":0}]
[null,null,null,null,null,null,null,"количество фаз:","тип включения:","уровень напряжения: "]
[null,1]
[null,null,"SKU",{"$f":"ROW($D$71)","v":71},"SKU:1.1.1.","Удалить",{"$f":"$G$70 & (ROWS($G$72:G73)-2)+1&\".\"","v":"7.1."},"однофазный","прямой","0,4 кВ и ниже",null,null,null,null,null,null,null,null,null,null,null,null,{"$f":"1+6","v":7},{"$f":"5+40","v":45},{"$f":"11.31737+67.325","v":78.64237}]
[null,null,"SKU",{"$f":"ROW($D$71)","v":71},"SKU:2.1.1.","Удалить",{"$f":"$G$70 & (ROWS($G$72:G74)-2)+1&\".\"","v":"7.2."},"трехфазный","прямой","0,4 кВ и ниже",null,null,null,null,null,null,null,null,null,null,null,null,{"$f":"3+18+34+4+4","v":63},{"$f":"39+236+415+74+197","v":961},{"$f":"47.863+302.148+581.356+71.234+58.766","v":1061.367}]
[null,null,"SKU",{"$f":"ROW($D$71)","v":71},"SKU:2.3.2.","Удалить",{"$f":"$G$70 & (ROWS($G$72:G75)-2)+1&\".\"","v":"7.3."},"трехфазный","косвенный","1-10 кВ",null,null,null,null,null,null,null,null,null,null,null,null,1,60,217.93099000000001]
[null,1,"SKU",{"$f":"ROW($D$71)","v":71},null,"Удалить",{"$f":"$G$70 & (ROWS($G$72:G76)-2)+1&\".\"","v":"7.4."}]
[null,1]
[null,null,null,null,null,null,null,"Добавить"]
[null,1]
[null,null,null,null,null,null," * - случае если в субъекте Российской Федерации за 3 предыдущих года не осуществлялось строительство тех объектов электросетевого хозяйства, в отношении которых устанавливаются стандартизированные тарифные ставки либо не осуществлялось обеспечение средствами коммерческого учета электрической энергии (мощности), расчет ставок может производиться исходя из данных за два предыдущих года, в случае отсутствия данных за два года - за предыдущий год, а при отсутствии данных за три года - по планируемым расходам, определенным по сметам, выполненным с применением сметных нормативов.\n"]
["ddShPr11City_rstop",null,null,null,null,null,null,null,null,null,null," "]
[]
[]
[]
[]
[null,null,null,null,null,null,null,null," "]

{"sheet":"Прил. № 2.1 (год-3)","index":3,"n_rows":13,"n_cols":10,"rows_kept":13,"cut":false,"hidden":false,"merged":[[0,0,0,9],[2,0,6,0],[2,1,6,1],[5,6,5,7],[5,8,5,9],[3,6,4,9],[4,5,6,5],[4,2,6,2],[4,3,6,3],[4,4,6,4],[1,0,1,5],[2,2,2,5],[3,2,3,5]]}
["Приложение № 2.1\n"]
[{"$f":"\"Расходы на выполнение мероприятий по технологическому присоединению, предусмотренных пунктами \"&CHAR(34)&\"а\"&CHAR(34)&\" и \"&CHAR(34)&\"в\"&CHAR(34)&\" пункта 16 Методических указаний\"&CHAR(10)&\" за \" &IF(Титульный!C12=\"\",\"--- выберите период на листе Титульный ---\",(Титульный!C12-3)) & \" год\"","v":"Расходы на выполнение мероприятий по технологическому присоединению, предусмотренных пунктами \"а\" и \"в\" пункта 16 Методических указаний\n за 2019 год"}]
["№ п/п","Наименование мероприятий",{"$f":"\"Год формирования расходов (согласно учетной политике сетевой организации) за \" &IF(Титульный!C12=\"\",\"--- выберите период на листе Титульный ---\",(Титульный!C12-3)) & \" год\"","v":"Год формирования расходов (согласно учетной политике сетевой организации) за 2019 год"}]
[null,null,"Информация для расчета стандартизированной тарифной ставки С1",null,null,null,"расходы на одно присоединение (руб. на 1 ТП)"]
[null,null,"расходы согласно Приложению № 3 по каждому мероприятию\n (тыс. руб.) ","количество технологических присоединений (шт.)","объем максимальной мощности (кВт)","Итого расходы на одно присоединение \n(тыс.руб. на 1 ТП)\n (гр.3/ гр.4)"]
[null,null,null,null,null,null,"до 35 кВ",null,"свыше 35 кВ включительно"]
[null,null,null,null,null,null,"до 8900 кВт","свыше 8900 кВт включительно","до 8900 кВт","свыше 8900 кВт включительно"]
[1,2,3,4,5,6,15,16,17,18]
[1,"Подготовка и выдача сетевой организацией технических условий заявителю",{"$f":"'Прил. № 3.1 (''а'' п.16)'!E5","v":205.9363868336813},48,613.5,{"$f":"IF(D9=0,0,C9 /D9)","v":4.2903413923683607},{"$f":"IF(D9=0,0,C9/D9)","v":4.2903413923683607},{"$f":"IF(#REF!=0,0,#REF!/#REF!)","v":{"$error":"#REF!"}},{"$f":"IF(#REF!=0,0,#REF!/#REF!)","v":{"$error":"#REF!"}},{"$f":"IF(#REF!=0,0,#REF!/#REF!)","v":{"$error":"#REF!"}}]
[2,"Проверка сетевой организацией выполнения заявителем технических условий","-","-","-","-",{"$f":"IF(D10=0,0,C10/D10)","v":{"$error":"#VALUE!"}},{"$f":"IF(#REF!=0,0,#REF!/#REF!)","v":{"$error":"#REF!"}},{"$f":"IF(#REF!=0,0,#REF!/#REF!)","v":{"$error":"#REF!"}},{"$f":"IF(#REF!=0,0,#REF!/#REF!)","v":{"$error":"#REF!"}}]
[3,"Итого",{"$f":"C9+C10","v":{"$error":"#VALUE!"}},{"$f":"D9+D10","v":{"$error":"#VALUE!"}},{"$error":"#VALUE!"},null,{"$f":"IF(D11=0,0,C11/D11)","v":{"$error":"#VALUE!"}},{"$f":"IF(#REF!=0,0,#REF!/#REF!)","v":{"$error":"#REF!"}},{"$f":"IF(#REF!=0,0,#REF!/#REF!)","v":{"$error":"#REF!"}},{"$f":"IF(#REF!=0,0,#REF!/#REF!)","v":{"$error":"#REF!"}}]
["2.1","Выдача сетевой организацией уведомления об обеспечении сетевой организацией возможности присоединения к электрическим сетям заявителям, указанным в абзаце шестом пункта 24 Методических указаний по определению размера платы за технологическое присоединение к электрическим сетям",{"$f":"'Прил. № 3.2 (''в'' п.16)'!E5","v":448.77730316631869},48,613.5,{"$f":"IF(D12=0,0,C12 /D12)","v":9.3495271492983054},{"$f":"IF(D12=0,0,C12/D12)","v":9.3495271492983054},{"$f":"IF(#REF!=0,0,#REF!/#REF!)","v":{"$error":"#REF!"}},{"$f":"IF(#REF!=0,0,#REF!/#REF!)","v":{"$error":"#REF!"}},{"$f":"IF(#REF!=0,0,#REF!/#REF!)","v":{"$error":"#REF!"}}]
["2.2","Проверка сетевой организацией выполнения технических условий заявителями, указанными в абзаце седьмом пункта 24 Методических указаний по определению размера платы за технологическое присоединение к электрическим сетям",null,null,null,0,{"$f":"IF(D13=0,0,C13/D13)","v":0},{"$f":"IF(#REF!=0,0,#REF!/#REF!)","v":{"$error":"#REF!"}},{"$f":"IF(#REF!=0,0,#REF!/#REF!)","v":{"$error":"#REF!"}},{"$f":"IF(#REF!=0,0,#REF!/#REF!)","v":{"$error":"#REF!"}}]

{"sheet":"Прил. № 2.2 (год-2)","index":4,"n_rows":13,"n_cols":10,"rows_kept":13,"cut":false,"hidden":false,"merged":[[0,0,0,9],[2,0,6,0],[2,1,6,1],[5,6,5,7],[5,8,5,9],[3,6,4,9],[4,5,6,5],[1,0,1,5],[4,2,6,2],[4,3,6,3],[4,4,6,4],[3,2,3,5],[2,2,2,5]]}
["Приложение № 2.2\n"]
[{"$f":"\"Расходы на выполнение мероприятий по технологическому присоединению, предусмотренных пунктами \"&CHAR(34)&\"а\"&CHAR(34)&\" и \"&CHAR(34)&\"в\"&CHAR(34)&\" пункта 16 Методических указаний\"&CHAR(10)&\" за \" &IF(Титульный!C12=\"\",\"--- выберите период на листе Титульный ---\",(Титульный!C12-2)) & \" год\"","v":"Расходы на выполнение мероприятий по технологическому присоединению, предусмотренных пунктами \"а\" и \"в\" пункта 16 Методических указаний\n за 2020 год"}]
["№ п/п","Наименование мероприятий",{"$f":"\"Год формирования расходов (согласно учетной политике сетевой организации) за \" &IF(Титульный!C12=\"\",\"--- выберите период на листе Титульный ---\",(Титульный!C12-2)) & \" год\"","v":"Год формирования расходов (согласно учетной политике сетевой организации) за 2020 год"}]
[null,null,"Информация для расчета стандартизированной тарифной ставки С1",null,null,null,"расходы на одно присоединение (руб. на 1 ТП)"]
[null,null,"расходы согласно Приложению № 3 по каждому мероприятию (тыс. руб.) ","количество технологических присоединений (шт.)","объем максимальной мощности (кВт)","Итого расходы на одно присоединение \n(тыс.руб. на 1 ТП)\n (гр.3/ гр.4)"]
[null,null,null,null,null,null,"до 35 кВ",null,"свыше 35 кВ включительно"]
[null,null,null,null,null,null,"до 8900 кВт","свыше 8900 кВт включительно","до 8900 кВт","свыше 8900 кВт включительно"]
[1,2,3,4,5,6,15,16,17,18]
[1,"Подготовка и выдача сетевой организацией технических условий заявителю",{"$f":"'Прил. № 3.1 (''а'' п.16)'!D5","v":281.11015760517796},74,1171,{"$f":"IF(D9=0,0,C9 /D9)","v":3.7987859135834858},{"$f":"IF(D9=0,0,C9/D9)","v":3.7987859135834858},{"$f":"IF(#REF!=0,0,#REF!/#REF!)","v":{"$error":"#REF!"}},{"$f":"IF(#REF!=0,0,#REF!/#REF!)","v":{"$error":"#REF!"}},{"$f":"IF(#REF!=0,0,#REF!/#REF!)","v":{"$error":"#REF!"}}]
[2,"Проверка сетевой организацией выполнения заявителем технических условий","-","-","-","-",{"$f":"IF(D10=0,0,C10/D10)","v":{"$error":"#VALUE!"}},{"$f":"IF(#REF!=0,0,#REF!/#REF!)","v":{"$error":"#REF!"}},{"$f":"IF(#REF!=0,0,#REF!/#REF!)","v":{"$error":"#REF!"}},{"$f":"IF(#REF!=0,0,#REF!/#REF!)","v":{"$error":"#REF!"}}]
[3,"Итого",{"$f":"C9+C10","v":{"$error":"#VALUE!"}},{"$f":"D9+D10","v":{"$error":"#VALUE!"}},{"$error":"#VALUE!"},null,{"$f":"IF(D11=0,0,C11/D11)","v":{"$error":"#VALUE!"}},{"$f":"IF(#REF!=0,0,#REF!/#REF!)","v":{"$error":"#REF!"}},{"$f":"IF(#REF!=0,0,#REF!/#REF!)","v":{"$error":"#REF!"}},{"$f":"IF(#REF!=0,0,#REF!/#REF!)","v":{"$error":"#REF!"}}]
["2.1","Выдача сетевой организацией уведомления об обеспечении сетевой организацией возможности присоединения к электрическим сетям заявителям, указанным в абзаце шестом пункта 24 Методических указаний по определению размера платы за технологическое присоединение к электрическим сетям",494.83624358436083,69,1071,{"$f":"IF(D12=0,0,C12 /D12)","v":7.1715397620921859},{"$f":"IF(D12=0,0,C12/D12)","v":7.1715397620921859},{"$f":"IF(#REF!=0,0,#REF!/#REF!)","v":{"$error":"#REF!"}},{"$f":"IF(#REF!=0,0,#REF!/#REF!)","v":{"$error":"#REF!"}},{"$f":"IF(#REF!=0,0,#REF!/#REF!)","v":{"$error":"#REF!"}}]
["2.2","Проверка сетевой организацией выполнения технических условий заявителями, указанными в абзаце седьмом пункта 24 Методических указаний по определению размера платы за технологическое присоединение к электрическим сетям",35.85769881046096,5,100,7.1715397620921921,{"$f":"IF(D13=0,0,C13/D13)","v":7.1715397620921921},{"$f":"IF(#REF!=0,0,#REF!/#REF!)","v":{"$error":"#REF!"}},{"$f":"IF(#REF!=0,0,#REF!/#REF!)","v":{"$error":"#REF!"}},{"$f":"IF(#REF!=0,0,#REF!/#REF!)","v":{"$error":"#REF!"}}]

{"sheet":"Прил. № 2.3 (год-1)","index":5,"n_rows":13,"n_cols":10,"rows_kept":13,"cut":false,"hidden":false,"merged":[[0,0,0,9],[2,0,6,0],[2,1,6,1],[5,6,5,7],[5,8,5,9],[3,6,4,9],[4,5,6,5],[1,0,1,5],[2,2,2,5],[3,2,3,5],[4,2,6,2],[4,3,6,3],[4,4,6,4]]}
["Приложение № 2.3\n"]
[{"$f":"\"Расходы на выполнение мероприятий по технологическому присоединению, предусмотренных пунктами \"&CHAR(34)&\"а\"&CHAR(34)&\" и \"&CHAR(34)&\"в\"&CHAR(34)&\" пункта 16 Методических указаний\"&CHAR(10)&\" за \" &IF(Титульный!C12=\"\",\"--- выберите период на листе Титульный ---\",(Титульный!C12-1)) & \" год\"","v":"Расходы на выполнение мероприятий по технологическому присоединению, предусмотренных пунктами \"а\" и \"в\" пункта 16 Методических указаний\n за 2021 год"}]
["№ п/п","Наименование мероприятий",{"$f":"\"Год формирования расходов (согласно учетной политике сетевой организации) за \" &IF(Титульный!C12=\"\",\"--- выберите период на листе Титульный ---\",(Титульный!C12-1)) & \" год\"","v":"Год формирования расходов (согласно учетной политике сетевой организации) за 2021 год"}]
[null,null,"Информация для расчета стандартизированной тарифной ставки С1",null,null,null,"расходы на одно присоединение (руб. на 1 ТП)"]
[null,null,"расходы согласно Приложению № 3 по каждому мероприятию (тыс. руб.) ","количество технологических присоединений (шт.)","объем максимальной мощности (кВт)","Итого расходы на одно присоединение \n(тыс.руб. на 1 ТП)\n (гр.3/ гр.4)"]
[null,null,null,null,null,null,"до 35 кВ",null,"свыше 35 кВ включительно"]
[null,null,null,null,null,null,"до 8900 кВт","свыше 8900 кВт включительно","до 8900 кВт","свыше 8900 кВт включительно"]
[1,2,3,4,5,6,15,16,17,18]
[1,"Подготовка и выдача сетевой организацией технических условий заявителю",{"$f":"'Прил. № 3.1 (''а'' п.16)'!C5","v":255.45828337236571},92,1431,{"$f":"IF(D9=0,0,C9 /D9)","v":2.7767204714387579},{"$f":"IF(D9=0,0,C9/D9)","v":2.7767204714387579},{"$f":"IF(#REF!=0,0,#REF!/#REF!)","v":{"$error":"#REF!"}},{"$f":"IF(#REF!=0,0,#REF!/#REF!)","v":{"$error":"#REF!"}},{"$f":"IF(#REF!=0,0,#REF!/#REF!)","v":{"$error":"#REF!"}}]
[2,"Проверка сетевой организацией выполнения заявителем технических условий","-","-","-","-",{"$f":"IF(D10=0,0,C10/D10)","v":{"$error":"#VALUE!"}},{"$f":"IF(#REF!=0,0,#REF!/#REF!)","v":{"$error":"#REF!"}},{"$f":"IF(#REF!=0,0,#REF!/#REF!)","v":{"$error":"#REF!"}},{"$f":"IF(#REF!=0,0,#REF!/#REF!)","v":{"$error":"#REF!"}}]
[3,"Итого",{"$f":"C9+C10","v":{"$error":"#VALUE!"}},{"$f":"D9+D10","v":{"$error":"#VALUE!"}},{"$error":"#VALUE!"},null,{"$f":"IF(D11=0,0,C11/D11)","v":{"$error":"#VALUE!"}},{"$f":"IF(#REF!=0,0,#REF!/#REF!)","v":{"$error":"#REF!"}},{"$f":"IF(#REF!=0,0,#REF!/#REF!)","v":{"$error":"#REF!"}},{"$f":"IF(#REF!=0,0,#REF!/#REF!)","v":{"$error":"#REF!"}}]
["2.1","Выдача сетевой организацией уведомления об обеспечении сетевой организацией возможности присоединения к электрическим сетям заявителям, указанным в абзаце шестом пункта 24 Методических указаний по определению размера платы за технологическое присоединение к электрическим сетям",{"$f":"'Прил. № 3.2 (''в'' п.16)'!C5*0.967391","v":480.62143770472346},89,1206,{"$f":"IF(D12=0,0,C12 /D12)","v":5.4002408730867808},{"$f":"IF(D12=0,0,C12/D12)","v":5.4002408730867808},{"$f":"IF(#REF!=0,0,#REF!/#REF!)","v":{"$error":"#REF!"}},{"$f":"IF(#REF!=0,0,#REF!/#REF!)","v":{"$error":"#REF!"}},{"$f":"IF(#REF!=0,0,#REF!/#REF!)","v":{"$error":"#REF!"}}]
["2.2","Проверка сетевой организацией выполнения технических условий заявителями, указанными в абзаце седьмом пункта 24 Методических указаний по определению размера платы за технологическое присоединение к электрическим сетям",{"$f":"'Прил. № 3.2 (''в'' п.16)'!C5*0.032609","v":16.200878922910515},3,225,5.4002929743035049,{"$f":"IF(D13=0,0,C13/D13)","v":5.4002929743035049},{"$f":"IF(#REF!=0,0,#REF!/#REF!)","v":{"$error":"#REF!"}},{"$f":"IF(#REF!=0,0,#REF!/#REF!)","v":{"$error":"#REF!"}},{"$f":"IF(#REF!=0,0,#REF!/#REF!)","v":{"$error":"#REF!"}}]

{"sheet":"Прил. № 3.1 ('а' п.16)","index":6,"n_rows":23,"n_cols":6,"rows_kept":23,"cut":false,"hidden":false,"merged":[[0,0,0,5],[1,0,1,5]]}
["Приложение № 3.1\n"]
[{"$f":"\"Расчет фактических расходов на выполнение мероприятий  по технологическому присоединению, связанных с подготовкой и выдачей сетевой организацией технических условий заявителю, предусмотренных подпунктом \"&CHAR(34)&\"а\"&CHAR(34)&\" пункта 16 Методических указаний за \" &IF(Титульный!C12=\"\",\"--- выберите период на листе Титульный ---\",(Титульный!C12-3) & \"–\" & (Титульный!C12-1) ) & \" годы\"","v":"Расчет фактических расходов на выполнение мероприятий  по технологическому присоединению, связанных с подготовкой и выдачей сетевой организацией технических условий заявителю, предусмотренных подпунктом \"а\" пункта 16 Методических указаний за 2019–2021 годы"}]
["№ п/п","Показатели",{"$f":"CONCATENATE(\"Данные за \" &IF(Титульный!C12=\"\",\"--- выберите период на листе Титульный ---\",(Титульный!C12-1)) & \" год,\", CHAR(10),\" тыс. рублей\")","v":"Данные за 2021 год,\n тыс. рублей"},{"$f":"CONCATENATE(\"Данные за \" &IF(Титульный!C12=\"\",\"--- выберите период на листе Титульный ---\",(Титульный!C12-2)) & \" год,\", CHAR(10),\" тыс. рублей\")","v":"Данные за 2020 год,\n тыс. рублей"},{"$f":"CONCATENATE(\"Данные за \" &IF(Титульный!C12=\"\",\"--- выберите период на листе Титульный ---\",(Титульный!C12-3)) & \" год,\", CHAR(10),\" тыс. рублей\")","v":"Данные за 2019 год,\n тыс. рублей"},"Итого,\nтыс. рублей"]
[1,2,3,4,5,6]
[1,"Расходы по выполнению мероприятий по технологическому присоединению, всего",{"$f":"C6+C7+C8+C9+C10+C19","v":255.45828337236571},{"$f":"D6+D7+D8+D9+D10+D19","v":281.11015760517796},{"$f":"E6+E7+E8+E9+E10+E19","v":205.9363868336813},{"$f":"C5+D5+E5","v":742.50482781122491}]
["1.1","Вспомогательные материалы",34.193366861826703,23.325542912621355,7.3117841336116918,{"$f":"C6+D6+E6","v":64.830693908059757}]
["1.2","Энергия на хозяйственные нужды",null,null,null,0]
["1.3","Оплата труда ППП",65.949973067915707,86.979202297734616,62.023156910229652,214.95233227588]
["1.4","Отчисления на страховые взносы",20.006339344262301,25.167196440129452,18.499727766179543,63.673263550571292]
["1.5","Прочие расходы, всего, в том числе:",{"$f":"SUM(C11:C13)","v":135.308604098361},{"$f":"SUM(D11:D13)","v":145.63821595469255},{"$f":"SUM(E11:E13)","v":118.10171802366042},399.04853807671395]
["1.5.1","работы и услуги производственного характера",135.308604098361,145.63821595469255,118.10171802366042,399.04853807671395]
["1.5.2","налоги и сборы, уменьшающие налогооблагаемую базу на прибыль организаций, всего",null,null,null,0]
["1.5.3","работы и услуги непроизводственного характера, в том числе:",{"$f":"SUM(C14:C18)","v":0},{"$f":"SUM(D14:D18)","v":0},{"$f":"SUM(E14:E18)","v":0},0]
["1.5.3.1","услуги связи",null,null,null,0]
["1.5.3.2","расходы на охрану и пожарную безопасность",null,null,null,0]
["1.5.3.3","расходы на информационное обслуживание, иные услуги, связанные с деятельностью по технологическому присоединению",null,null,null,0]
["1.5.3.4","плата за аренду имущества",null,null,null,0]
["1.5.3.5","другие прочие расходы, связанные с производством и реализацией",null,null,null,0]
["1.6","Внереализованные расходы, всего",{"$f":"SUM(C20:C23)","v":0},{"$f":"SUM(D20:D23)","v":0},{"$f":"SUM(E20:E23)","v":0},0]
["1.6.1","расходы на услуги банков",null,null,null,0]
["1.6.2","% за пользование кредитом",null,null,null,0]
["1.6.3","прочие обоснованные расходы",null,null,null,0]
["1.6.4","денежные выплаты социального характера ( по Коллективному договору)",null,null,null,0]

{"sheet":"Прил. № 3.2 ('в' п.16)","index":7,"n_rows":23,"n_cols":6,"rows_kept":23,"cut":false,"hidden":false,"merged":[[0,0,0,5],[1,0,1,5]]}
["Приложение № 3.2\n"]
[{"$f":"\"Расчет фактических расходов на выполнение мероприятий  по технологическому присоединению, связанных с проверкой сетевой организацией выполнения заявителем технических условий, предусмотренных подпунктом \"&CHAR(34)&\"в\"&CHAR(34)&\" пункта 16 Методических указаний за \" &IF(Титульный!C12=\"\",\"--- выберите период на листе Титульный ---\",(Титульный!C12-3) & \"–\" & (Титульный!C12-1) ) & \" годы\"","v":"Расчет фактических расходов на выполнение мероприятий  по технологическому присоединению, связанных с проверкой сетевой организацией выполнения заявителем технических условий, предусмотренных подпунктом \"в\" пункта 16 Методических указаний за 2019–2021 годы"}]
["№ п/п","Показатели",{"$f":"CONCATENATE(\"Данные за \" &IF(Титульный!C12=\"\",\"--- выберите период на листе Титульный ---\",(Титульный!C12-1)) & \" год,\", CHAR(10),\" тыс. рублей\")","v":"Данные за 2021 год,\n тыс. рублей"},{"$f":"CONCATENATE(\"Данные за \" &IF(Титульный!C12=\"\",\"--- выберите период на листе Титульный ---\",(Титульный!C12-2)) & \" год,\", CHAR(10),\" тыс. рублей\")","v":"Данные за 2020 год,\n тыс. рублей"},{"$f":"CONCATENATE(\"Данные за \" &IF(Титульный!C12=\"\",\"--- выберите период на листе Титульный ---\",(Титульный!C12-3)) & \" год,\", CHAR(10),\" тыс. рублей\")","v":"Данные за 2019 год,\n тыс. рублей"},"Итого,\nтыс. рублей"]
[1,2,3,4,5,6]
[1,"Расходы по выполнению мероприятий по технологическому присоединению, всего",{"$f":"C6+C7+C8+C9+C10+C19","v":496.822316627634},{"$f":"D6+D7+D8+D9+D10+D19","v":530.69394239482199},{"$f":"E6+E7+E8+E9+E10+E19","v":448.77730316631869},{"$f":"C5+D5+E5","v":1476.2935621887746}]
["1.1","Вспомогательные материалы",66.500203138173305,44.035137087378637,15.933865866388309,{"$f":"C6+D6+E6","v":126.46920609194026}]
["1.2","Энергия на хозяйственные нужды",null,null,null,0]
["1.3","Оплата труда ППП",128.26132693208399,164.20372770226538,135.16108308977033,427.6261377241197]
["1.4","Отчисления на страховые взносы",38.908880655737697,47.511903559870554,40.314672233820467,126.73545644942871]
["1.5","Прочие расходы, всего, в том числе:",{"$f":"SUM(C11:C13)","v":263.151905901639},{"$f":"SUM(D11:D13)","v":274.94317404530744},{"$f":"SUM(E11:E13)","v":257.36768197633961},795.46276192328605]
["1.5.1","работы и услуги производственного характера",263.151905901639,274.94317404530744,257.36768197633961,795.46276192328605]
["1.5.2","налоги и сборы, уменьшающие налогооблагаемую базу на прибыль организаций, всего",null,null,null,0]
["1.5.3","работы и услуги непроизводственного характера, в том числе:",{"$f":"SUM(C14:C18)","v":0},{"$f":"SUM(D14:D18)","v":0},{"$f":"SUM(E14:E18)","v":0},0]
["1.5.3.1","услуги связи",null,null,null,0]
["1.5.3.2","расходы на охрану и пожарную безопасность",null,null,null,0]
["1.5.3.3","расходы на информационное обслуживание, иные услуги, связанные с деятельностью по технологическому присоединению",null,null,null,0]
["1.5.3.4","плата за аренду имущества",null,null,null,0]
["1.5.3.5","другие прочие расходы, связанные с производством и реализацией",null,null,null,0]
["1.6","Внереализованные расходы, всего",{"$f":"SUM(C20:C23)","v":0},{"$f":"SUM(D20:D23)","v":0},{"$f":"SUM(E20:E23)","v":0},0]
["1.6.1","расходы на услуги банков",null,null,null,0]
["1.6.2","% за пользование кредитом",null,null,null,0]
["1.6.3","прочие обоснованные расходы",null,null,null,0]
["1.6.4","денежные выплаты социального характера ( по Коллективному договору)",null,null,null,0]

{"sheet":"Проверка","index":8,"n_rows":1,"n_cols":4,"rows_kept":1,"cut":false,"hidden":false,"merged":[]}
[null,"Сообщение","Адрес","Статус"]

{"sheet":"Справочник","index":9,"n_rows":17,"n_cols":43,"rows_kept":17,"cut":false,"hidden":true,"merged":[[2,32,2,35],[2,1,2,6],[2,9,2,15],[2,37,2,40],[2,17,2,20],[2,22,2,25],[2,27,2,30]]}
[null,"VL1","VL2","VL3","VL4","VL5","VL6",null,null,"KL1","KL2","KL3","KL4","KL5","KL6",null,null,"PS1","PS2","PS3","PS4",null,"TS1","TS2","TS3","TS4",null,"RTP1","RTP2","RTP3","RTP4",null,"SP1","SP2","SP3","SP4",null,"SKU1","SKU2","SKU3","SKU4","SKU5","SKU6"]
[null,"1. ВЛ Воздушные линии",null,null,null,null,null,null,null,"2. КЛ Кабельные линии",null,null,null,null,null,null,null,"3. Пункты секционирования",null,null,null,null,"4. ТП Трансформаторные подстанции",null,null,null,null,"5. РТП Распред. трансформаторные подстанции",null,null,null,null,"6. Подстанции",null,null,null,null,"7. СКУ Средства коммерческого учета"]
[null,"строительство воздушных линий электропередачи ",null,null,null,null,null,null,null,"строительство кабельных линий электропередачи ",null,null,null,null,null,null,null,"строительство пунктов секционирования",null,null,null,null,"строительство комплектных трансформаторных подстанций (КТП) с уровнем напряжения до 35 кВ",null,null,null,null,"строительство распределительных трансформаторных подстанций (РТП) с уровнем напряжения до 35 кВ",null,null,null,null,"строительство центров питания, подстанций уровнем напряжения 35 кВ и выше (ПС)",null,null,null,null,"обеспечение средствами коммерческого учета электрической энергии (мощности)"]
[null,"тип опор: ","тип провода:","материал провода:","сечение провода:","количество цепей:","уровень напряжения:",null,null,"способ прокладки: ","количество жил:","тип изоляции:","сечение провода:","количество кабелей в траншее, канале, туннеле или\n коллекторе, на галерее или эстакаде, труб в скважине:","уровень напряжения:",null,null,"пункт секционирования: ","номинальный ток:","количество ячеек в распределительном или \nпереключательном пункте:","уровень напряжения:",null,"уровень напряжения: ","количество трансформаторов:","трансформаторная мощность:","тип трансформаторной подстанции:",null,"количество трансформаторов:","трансформаторная мощность:","уровень напряжения: ","тип распределительной трансформаторной подстанции:",null,"количество трансформаторов:","трансформаторная мощность:","уровень напряжения: ","тип центра питания, подстанции:",null,"количество фаз:","тип включения:","уровень напряжения: "]
[null,"деревянные","изолированный","медный","до 50 мм2 включительно","одноцепная","0,4 кВ и ниже",null,null,"в траншеях","одножильные","резиновая и пластмассовая ","до 50 мм2 включительно","один","0,4 кВ и ниже",null,null,"реклоузеры","до 100 А включительно","до 5 ячеек включительно","0,4 кВ и ниже",null,"6/0,4 кВ","однотрансформаторные","до 25 кВА включительно","столбовой/мачтовый ",null,"однотрансформаторные","до 25 кВА включительно","6(10)/0,4 кВ","открытого типа",null,"однотрансформаторные","до 6,3 МВА включительно","35/6(10) кВ","открытого типа",null,"однофазный","прямой","0,4 кВ и ниже","0,4 кВ и ниже","0,4 кВ и ниже","1-10 кВ"]
[null,"железобетонные опоры","неизолированный","стальной ","от 50 до 100 мм2 включительно","двухцепная","1-20 кВ",null,null,"в блоках","многожильные","бумажная","от 50 до 100 мм2 включительно","два","1-10 кВ",null,null,"линейные разъединители","от 100 до 250 А включительно","от 5 до 10 ячеек включительно","1-20 кВ",null,"10/0,4 кВ","двухтрансформаторные","от 25 до 100 кВА включительно","шкафной или киосковый",null,"двухтрансформаторные","от 25 до 100 кВА включительно","20/0,4 кВ","закрытого типа",null,"двухтрансформаторные","от 6,3 до 10 МВА включительно","35/0,4 кВ","закрытого типа",null,"трехфазный","полукосвенный","1-10 кВ","1-20 кВ","1-20 кВ","20 кВ"]
[null,"металлические опоры",null,"сталеалюминиевый","от 100 до 200 мм2 включительно",null,"27,5-60 кВ",null,null,"в каналах",null,null,"от 100 до 200 мм2 включительно","три","15-20 кВ",null,null,"выключатели нагрузки, устанавливаемые вне\nтрансформаторных подстанций и распределительных и переключательных пунктов (РП)","от 250 до 500 А включительно","от 10 до 15 ячеек включительно","35 кВ",null,"20/0,4 кВ",null,"от 100 до 250 кВА включительно","блочный",null,null,"от 100 до 250 кВА включительно",null,null,null,null,"от 10 до 16 МВА включительно","110/35 кВ",null,null,null,"косвенный","1-20 кВ",null,"35 кВ","35 кВ"]
[null,"металлические опоры, за исключением многогранных",null,"алюминиевый","от 200 до 500 мм2 включительно",null,"110 кВ и выше",null,null,"в туннелях и коллекторах",null,null,"от 200 до 250 мм2 включительно","четыре","27,5-60 кВ",null,null,"распределительные пункты (РП), за исключением комплектных распределительных устройств наружной установки (КРН, КРУН)","от 500 до 1000 А включительно","свыше 15 ячеек","110 кВ и выше",null,"6/10 (10/6) кВ",null,"от 250 до 400 кВА включительно","встроенный",null,null,"от 250 до 400 кВА включительно",null,null,null,null,"от 16 до 25 МВА включительно","110/6(10) кВ",null,null,null,null,"20 кВ",null,"110 кВ и выше","110 кВ и выше"]
[null,"многогранные металлические опоры",null,null,"от 500 до 800 мм2 включительно",null,null,null,null,"в галереях и эстакадах",null,null,"от 250 до 300 мм2 включительно","более четырех","110 кВ и выше",null,null,"комплектные распределительные устройства наружной установки (КРН, КРУН)","свыше 1000 А",null,null,null,"10/20 (20/10) кВ",null,"от 400 до 630 кВА включительно",null,null,null,"от 400 до 630 кВА включительно",null,null,null,null,"от 25 до 32 МВА включительно","110/35/6(10) кВ",null,null,null,null,"35 кВ"]
[null,null,null,null,"свыше 800 мм2",null,null,null,null,"горизонтальное наклонное бурение",null,null,"от 300 до 400 мм2 включительно",null,null,null,null,"переключательные пункты",null,null,null,null,"6/20 (20/6) кВ",null,"от 630 до 1000 кВА включительно",null,null,null,"от 630 до 1000 кВА включительно",null,null,null,null,"от 32 до 40 МВА включительно",null,null,null,null,null,"110 кВ и выше"]
[null,null,null,null,null,null,null,null,null,"подводная прокладка",null,null,"от 400 до 500 мм2 включительно",null,null,null,null,null,null,null,null,null,null,null,"от 1000 до 1250 кВА включительно",null,null,null,"от 1000 до 1250 кВА включительно",null,null,null,null,"от 40 до 63 МВА включительно"]
[null,null,null,null,null,null,null,null,null,null,null,null,"от 500 до 800 мм2 включительно",null,null,null,null,null,null,null,null,null,null,null,"от 1250 до 1600 кВА включительно",null,null,null,"от 1250 до 1600 кВА включительно",null,null,null,null,"от 63 до 80 МВА включительно"]
[null,null,null,null,null,null,null,null,null,null,null,null,"свыше 800 мм2",null,null,null,null,null,null,null,null,null,null,null,"от 1600 до 2000 кВА включительно",null,null,null,"от 1600 до 2000 кВА включительно",null,null,null,null,"от 80 до 100 МВА включительно"]
[null,null,null,null,null,null,null,null,null,null,null,null,null,null,null,null,null,null,null,null,null,null,null,null,"от 2000 до 2500 кВА включительно",null,null,null,"от 2000 до 2500 кВА включительно",null,null,null,null,"свыше 100 МВА"]
[null,null,null,null,null,null,null,null,null,null,null,null,null,null,null,null,null,null,null,null,null,null,null,null,"от 2500 до 3150 кВА включительно",null,null,null,"от 2500 до 3150 кВА включительно"]
[null,null,null,null,null,null,null,null,null,null,null,null,null,null,null,null,null,null,null,null,null,null,null,null,"от 3150 до 4000 кВА включительно",null,null,null,"свыше 3150 кВА"]
[null,null,null,null,null,null,null,null,null,null,null,null,null,null,null,null,null,null,null,null,null,null,null,null,"свыше 4000 кВА"]